[Event "BLR-ch U20 Girls 2021"]
[Site "Minsk"]
[Date "2021.04.21"]
[Round "6.7"]
[White "Liashkevich, Lizaveta"]
[Black "Khomich, Maryna"]
[Result "0-1"]
[ECO "D10"]
[WhiteElo "1401"]
[BlackElo "1409"]
[Annotator "NA"]
[PlyCount "98"]
[EventDate "2021.04.20"]
[EventType "tourn"]
[EventCountry "BLR"]
[SourceTitle "playchess.com"]
[Source "ChessBase"]
[SourceQuality "1"]
[TimeControl "40/5400+30:1800+30"]

1. d4 {[%emt 0:00:00]} d5 {[%emt 0:00:00]} 2. c4 {[%emt 0:00:00]} c6 {[%emt 0:00:00]} 3. cxd5 {[%emt 0:00:00]} cxd5 {[%emt 0:00:00]} 4. Bf4 {[%emt 0:00:28]} Nf6 {[%emt 0:00:24]} 5. e3 {[%emt 0:00:48]} Nc6 {[%emt 0:00:26]} 6. Nc3 {[%emt 0:00:19]} a6 {[%emt 0:00:16]} 7. Bd3 {[%emt 0:00:36]} Bg4 {[%emt 0:00:13]} 8. Nge2 {[%emt 0:00:29]} e6 {[%emt 0:00:10]} 9. Rc1 {[%emt 0:00:50]} Be7 {[%emt 0:02:01]} 10. O-O {[%emt 0:01:07]} O-O {[%emt 0:00:05]} 11. Na4 {[%emt 0:06:14]} Nd7 {[%emt 0:03:55]} 12. Qb3 {[%emt 0:04:03]} Na5 {[%emt 0:04:31]} 13. Qc3 {[%emt 0:00:38]} Nc6 {[%emt 0:18:13]} 14. f3 {[%emt 0:06:00]} Bh5 {[%emt 0:00:08]} 15. Bg3 {[%emt 0:00:22]} Bg6 {[%emt 0:04:06]} 16. Nf4 {[%emt 0:01:46]} Rc8 {[%emt 0:00:26]} 17. Bxg6 {[%emt 0:05:08]} hxg6 {[%emt 0:00:06]} 18. Nd3 {[%emt 0:01:47]} Nb4 {[%emt 0:17:12]} 19. Bc7 {[%emt 0:15:52]} Nxa2 {[%emt 0:11:32]} 20. Qa5 {[%emt 0:05:00]} Rxc7 {[%emt 0:08:45]} 21. Qxc7 {[%emt 0:07:59]} Nxc1 {[%emt 0:00:07]} 22. Rxc1 {[%emt 0:00:39]} b5 {[%emt 0:02:36]} 23. Qxd8 {[%emt 0:00:40]} Rxd8 {[%emt 0:00:07]} 24. Nac5 {[%emt 0:00:59]} Nxc5 {[%emt 0:05:44]} 25. dxc5 {[%emt 0:01:38]} a5 {[%emt 0:00:17]} 26. Kf2 {[%emt 0:03:00]} Rc8 {[%emt 0:01:16]} 27. b3 {[%emt 0:04:06]} Bf6 {[%emt 0:06:34]} 28. f4 {[%emt 0:06:02]} Kf8 {[%emt 0:02:40]} 29. Rc2 {[%emt 0:02:56]} Ke8 {[%emt 0:00:10]} 30. g4 {[%emt 0:07:32]} g5 {[%emt 0:03:16]} 31. Kf3 {[%emt 0:01:12]} gxf4 {[%emt 0:01:22]} 32. exf4 {[%emt 0:07:16]} Bd4 {[%emt 0:00:56]} 33. h4 {[%emt 0:01:08]} f6 {[%emt 0:02:18]} 34. Ra2 {[%emt 0:02:58]} e5 {[%emt 0:04:46]} 35. fxe5 {[%emt 0:00:22]} fxe5 {[%emt 0:00:01]} 36. Ke2 {[%emt 0:00:36]} Bc3 {[%emt 0:00:14]} 37. Rc2 {[%emt 0:02:57]} b4 {[%emt 0:00:07]} 38. c6 {[%emt 0:00:47]} Rxc6 {[%emt 0:00:32]} 39. Ra2 {[%emt 0:00:37]} Ra6 {[%emt 0:01:20]} 40. Nc5 {[%emt 0:00:00]} Ra7 {[%emt 0:00:00]} 41. Kd3 {[%emt 0:04:41]} Ke7 {[%emt 0:04:25]} 42. Re2 {[%emt 0:03:20]} Kd6 {[%emt 0:03:16]} 43. Na4 {[%emt 0:00:10]} Rc7 {[%emt 0:02:15]} 44. g5 {[%emt 0:00:53]} e4+ {[%emt 0:00:53]} 45. Ke3 {[%emt 0:00:55]} Rf7 {[%emt 0:01:53]} 46. Rg2 {[%emt 0:01:07]} Rf3+ {[%emt 0:00:08]} 47. Ke2 {[%emt 0:00:11]} d4 {[%emt 0:00:16]} 48. Rf2 {[%emt 0:02:01]} d3+ {[%emt 0:01:43]} 49. Kf1 {[%emt 0:00:24]} d2 {[%emt 0:00:08]} 0-1

[Event "BLR-ch U20 Girls 2021"]
[Site "Minsk"]
[Date "2021.04.21"]
[Round "6.8"]
[White "Halouchyts, Karalina"]
[Black "Astapchyk, Darya"]
[Result "1-0"]
[ECO "B01"]
[WhiteElo "1765"]
[BlackElo "1586"]
[Annotator "NA"]
[PlyCount "91"]
[EventDate "2021.04.20"]
[EventType "tourn"]
[EventCountry "BLR"]
[SourceTitle "playchess.com"]
[Source "ChessBase"]
[SourceQuality "1"]
[TimeControl "40/5400+30:1800+30"]

1. e4 {[%emt 0:02:52]} d5 {[%emt 0:00:00]} 2. exd5 {[%emt 0:00:15]} Qxd5 {[%emt 0:00:00]} 3. Nc3 {[%emt 0:00:07]} Qd6 {[%emt 0:00:00]} 4. d4 {[%emt 0:00:04]} Nf6 {[%emt 0:00:15]} 5. Nf3 {[%emt 0:00:15]} c6 {[%emt 0:00:08]} 6. g3 {[%emt 0:00:19]} Bg4 {[%emt 0:00:32]} 7. Bg2 {[%emt 0:00:23]} Nbd7 {[%emt 0:05:59]} 8. O-O {[%emt 0:01:07]} h6 {[%emt 0:01:28]} 9. Bf4 {[%emt 0:03:11]} Qb4 {[%emt 0:00:20]} 10. d5 {[%emt 0:08:05]} cxd5 {[%emt 0:15:19]} 11. Nxd5 {[%emt 0:00:33]} Nxd5 {[%emt 0:00:13]} 12. Qxd5 {[%emt 0:00:09]} e6 {[%emt 0:07:44]} 13. Qd3 {[%emt 0:10:07]} Bc5 {[%emt 0:11:35]} 14. Ne5 {[%emt 0:38:00]} Nxe5 {[%emt 0:01:19]} 15. Bxe5 {[%emt 0:05:39]} O-O {[%emt 0:08:07]} 16. a3 {[%emt 0:01:06]} Qb6 {[%emt 0:04:14]} 17. b4 {[%emt 0:00:41]} Be7 {[%emt 0:08:51]} 18. Qe4 {[%emt 0:04:00]} Bf5 {[%emt 0:03:18]} 19. Qxb7 {[%emt 0:01:01]} Qxb7 {[%emt 0:00:43]} 20. Bxb7 {[%emt 0:00:08]} Rad8 {[%emt 0:00:10]} 21. c4 {[%emt 0:02:17]} f6 {[%emt 0:04:04]} 22. Bf4 {[%emt 0:01:29]} g5 {[%emt 0:01:21]} 23. Be3 {[%emt 0:00:09]} Rd7 {[%emt 0:01:18]} 24. Bc6 {[%emt 0:03:29]} Rc7 {[%emt 0:00:34]} 25. b5 {[%emt 0:00:44]} Bd3 {[%emt 0:01:13]} 26. Rfc1 {[%emt 0:00:12]} f5 {[%emt 0:10:44]} 27. Bd4 {[%emt 0:01:01]} Bf6 {[%emt 0:01:25]} 28. Bxf6 {[%emt 0:00:40]} Rxf6 {[%emt 0:00:04]} 29. Rc3 {[%emt 0:01:18]} Be2 {[%emt 0:00:48]} 30. Re1 {[%emt 0:02:01]} Bg4 {[%emt 0:00:48]} 31. c5 {[%emt 0:08:06]} f4 {[%emt 0:01:58]} 32. f3 {[%emt 0:02:54]} Bh3 {[%emt 0:02:48]} 33. Be4 {[%emt 0:02:20]} g4 {[%emt 0:01:44]} 34. Rec1 {[%emt 0:00:58]} e5 {[%emt 0:01:18]} 35. a4 {[%emt 0:00:43]} gxf3 {[%emt 0:00:58]} 36. Bxf3 {[%emt 0:00:44]} Bd7 {[%emt 0:01:43]} 37. c6 {[%emt 0:00:31]} Bf5 {[%emt 0:01:09]} 38. Bd5+ {[%emt 0:00:19]} Kf8 {[%emt 0:00:19]} 39. a5 {[%emt 0:00:29]} Rd6 {[%emt 0:01:34]} 40. Rc5 {[%emt 0:00:00]} Rd8 {[%emt 0:00:00]} 41. b6 {[%emt 0:01:49]} axb6 {[%emt 0:02:57]} 42. axb6 {[%emt 0:00:04]} Rg7 {[%emt 0:00:43]} 43. c7 {[%emt 0:04:32]} Re8 {[%emt 0:00:45]} 44. b7 {[%emt 0:01:03]} fxg3 {[%emt 0:00:09]} 45. c8=Q {[%emt 0:00:50]} gxh2+ {[%emt 0:00:40]} 46. Kxh2 {[%emt 0:00:09]} 1-0

[Event "BLR-ch U20 Girls 2021"]
[Site "Minsk"]
[Date "2021.04.22"]
[Round "7.2"]
[White "Khomich, Maryna"]
[Black "Halouchyts, Karalina"]
[Result "0-1"]
[ECO "A26"]
[WhiteElo "1409"]
[BlackElo "1765"]
[Annotator "NA RC"]
[PlyCount "76"]
[EventDate "2021.04.20"]
[EventType "tourn"]
[EventCountry "BLR"]
[SourceTitle "playchess.com"]
[Source "ChessBase"]
[SourceQuality "1"]
[TimeControl "40/5400+30:1800+30"]

1. c4 {[%emt 0:00:00]} Nf6 {[%emt 0:02:16]} 2. Nf3 {[%emt 0:00:00]} g6 {[%emt 0:00:09]} 3. g3 {[%emt 0:00:00]} Bg7 {[%emt 0:00:04]} 4. Bg2 {[%emt 0:00:00]} O-O {[%emt 0:00:11]} 5. O-O {[%emt 0:00:00]} d6 {[%emt 0:00:11]} 6. Nc3 {[%emt 0:00:07]} e5 {[%emt 0:00:12]} 7. d3 {[%emt 0:00:08]} Nc6 {[%emt 0:00:16]} 8. Rb1 {[%emt 0:00:12]} a5 {[%emt 0:00:07]} 9. a3 {[%emt 0:00:09]} Re8 {[%emt 0:00:05]} 10. Ng5 {[%emt 0:00:47]} h6 {[%emt 0:05:16]} 11. Nge4 {[%emt 0:00:07]} Nxe4 {[%emt 0:01:04]} 12. dxe4 {[%emt 0:00:14]} Be6 {[%emt 0:00:56]} 13. Nd5 {[%emt 0:00:17]} a4 {[%emt 0:00:44]} 14. e3 {[%emt 0:08:02]} Na5 {[%emt 0:02:39]} 15. Qxa4 {[%emt 0:07:28]} c6 {[%emt 0:00:20]} 16. b4 {[%emt 0:00:49]} Nxc4 {[%emt 0:05:15]} 17. Qc2 {[%emt 0:00:24]} cxd5 {[%emt 0:00:11]} 18. exd5 {[%emt 0:00:12]} Bf5 {[%emt 0:00:19]} 19. e4 {[%emt 0:04:44]} Rc8 {[%emt 0:00:22]} 20. exf5 {[%emt 0:00:13]} Nxa3 {[%emt 0:00:38]} 21. Qb3 {[%emt 0:01:30]} Nxb1 {[%emt 0:00:10]} 22. Qxb1 {[%emt 0:00:07]} gxf5 {[%emt 0:06:16]} 23. Bh3 {[%emt 0:00:38]} Rc4 {[%emt 0:01:20]} 24. Bxf5 {[%emt 0:00:58]} e4 {[%emt 0:04:40]} 25. Bf4 {[%emt 0:06:26]} Qb6 {[%emt 0:03:58]} 26. b5 {[%emt 0:04:36]} Qc5 {[%emt 0:00:30]} 27. Qd1 {[%emt 0:17:06]} Qd4 {[%emt 0:22:32]} 28. Qh5 {[%emt 0:16:28]} Qf6 {[%emt 0:00:15]} 29. g4 {[%emt 0:10:18]} Kf8 {[%emt 0:07:56]} 30. Bg3 {[%emt 0:10:28]} Rd4 {[%emt 0:16:44]} 31. Be6 {[%emt 0:04:15]} fxe6 {[%emt 0:01:15]} 32. Bxd6+ {[%emt 0:00:06]} Re7 {[%emt 0:00:07]} 33. Rc1 {[%emt 0:00:17]} Kg8 {[%emt 0:01:15]} 34. Rc8+ {[%emt 0:01:09]} Bf8 {[%emt 0:00:50]} 35. g5 {[%emt 0:06:40]} hxg5 {[%emt 0:03:03]} 36. Rxf8+ {[%emt 0:02:17]} Kxf8 {[%emt 0:02:57]} 37. Bxe7+ {[%emt 0:00:27]} Kxe7 {[%emt 0:00:12]} 38. Qh7+ {[%emt 0:00:22]} Kd6 {[%emt 0:00:51]} 0-1